{"text_format":"1","workbook":"xlsx","n_sheets":1,"sheets":["conceptos"],"not_rendered":{"charts":0,"images":2,"macros":1,"external_links":0,"defined_names":1,"comments":0,"pivot_tables":0},"unopened":[],"bounds":{"document_bytes":16777216,"sheet_cells":100000,"rows_first":2000,"rows_last":500,"rows_between":2000,"halvings":0,"cell_chars":16384,"cell_head_chars":4096},"cells_cut":0,"cells_raw":0,"read":"whole","date_system":"1900"}

{"sheet":"conceptos","index":0,"n_rows":107,"n_cols":8,"rows_kept":107,"cut":false,"hidden":false,"merged":[[104,0,104,4],[105,0,106,4],[13,0,13,6],[0,2,0,5],[9,2,9,5],[1,2,3,5],[4,2,4,3],[6,2,6,3],[7,2,7,3],[4,4,4,5],[5,4,5,5],[6,4,6,5],[7,4,7,5],[10,2,10,5],[11,2,11,5],[5,1,8,1]]}
[null,"GOBIERNO DEL ESTADO DE JALISCO","LICITACIÓN PÚBLICA ESTATAL"]
[null,"INSTITUTO DE LA INFRAESTRUCTURA FÍSICA EDUCATIVA DEL","E-REM-B-CON-04005-LP-0077-2020"]
[null,"ESTADO DE JALISCO"]
[]
[null,"DESCRIPCIÓN GENERAL DE LOS TRABAJOS:","FECHA DE INICIO:"]
[null,null,null,"FECHA DE TERMINACIÓN:"]
[null,null,"PLAZO DE EJECUCIÓN:"]
[null,null,"FECHA:"]
[]
[null,"RAZÓN SOCIAL DEL LICITANTE:","NOMBRE, CARGO Y FIRMA DEL LICITANTE:",null,null,null,"DOCUMENTO"]
[]
[]
[]
["PRESUPUESTO DE OBRA"]
[]
["CLAVE","DESCRIPCIÓN","UNIDAD","CANTIDAD","PRECIO UNITARIO ($)","PRECIO UNITARIO ($) CON LETRA","IMPORTE ($) M.N."]
["TRABAJO : BAS-CON-04005","CONSTRUCCIÓN DE CUBIERTA PARA EL PATIO CÍVICO EN LA ESCUELA PRIMARIA NIÑO ARTILLERO CCT 14DPR2890O, UBICADA EN LA LOCALIDAD LA AURORA, MUNICIPIO DE JUANACATLÁN, JALISCO.",null,null,null,null,{"$f":"TEXT(SUM(G18 + G51), \"$ #,##0.00 ;\")","v":"$ 0.00 "}]
["33B","MURO REJA",null,null,null,null,{"$f":"TEXT(SUM(G19 + G22 + G27 + G35 + G39 + G42 + G45 + G48), \"$ #,##0.00 ;\")","v":"$ 0.00 "}]
["33B.01(140)","DEMOLICIONES, DESMONTAJES Y MECANICA DE SUELOS    ",null,null,null,null,{"$f":"TEXT(SUM(G20:G21), \"$ #,##0.00 ;\")","v":"$ 0.00 "}]
[140076,"DEMOLICION DE MURO DE LADRILLO DE LAMA Y/O BLOCK DE JALCRETO DE 14 CMS. DE ESPESOR A CUALQUIER NIVEL, INCLUYE:  DEMOLICION DE DALAS, CADENAS Y CASTILLOS,  DEMOLICION DE RECUBRMIENTOS, APLANADOS, AZULEJO,(PROTECCIONES DE PISOS, VIDRIOS, PUERTAS, VENTANAS, LAMPARAS Y DEMAS INSTALACIONES QUE PUDIERAN RESULTAR DAÑADAS EN EL PROCESO DE LA DEMOLICION.) HERRAMIENTAS, EQUIPO DE SEGURIDAD,  ANDAMIOS, MANO DE OBRA, RETIRO Y ACARREO DE MATERIALES DE DESHECHO DENTRO Y FUERA DE LA OBRA ATIRADERO AUTORIZADO Y LIMPIEZA DEL AREA DE LOS TRABAJOS.","M2 ","66.7000",0,"CERO PESOS 00/100 M.N.",0,264245]
[140621,"DEMOLICION DE CIMIENTO DE MAMPOSTERIA DE PIEDRA BRAZA ASENTADA CON MORTERO CEM-ARE. INCLUYE: HERRAMIENTA, EQUIPO NECESARIO, MATERIAL DE CONSUMO, MANO DE OBRA, RETIRO Y ACARREO DEL MATERIAL DENTRO Y FUERA DE LA OBRA.\n","M3 ","10.6500",0,"CERO PESOS 00/100 M.N.",0,264247]
["33B.02(150)","TRABAJOS PRELIMINARES                             ",null,null,null,null,{"$f":"TEXT(SUM(G23:G26), \"$ #,##0.00 ;\")","v":"$ 0.00 "}]
[150020,"LIMPIEZA DE TERRENO RETIRANDO BASURA Y DESHIERBE FUERA DE LA OBRA. INCLUYE: HERRAMIENTAS, MANO DE OBRA, RECOLECCION, JUNTA Y RETIRO. (PROYECCION DE CUBIERTA).","M2 ","26.6500",0,"CERO PESOS 00/100 M.N.",0,264248]
[150120,"TRAZO Y NIVELACION DE EXTERIORES ESTABLECIENDO REFERENCIAS DEFINITIVAS, CON TRANSITO Y NIVEL (EQUIPO TOPOGRAFICO), INCLUYE: PERSONAL TECNICO CALIFICADO, ESTACAS, MOJONERAS, LOCALIZACION DE EJES Y/O ENTRE EJES, BANCOS DE NIVEL, MATERIALES PARA SEÑALAMIENTO, EQUIPO, HERRAMIENTA Y MANO DE OBRA.","M2 ","26.6500",0,"CERO PESOS 00/100 M.N.",0,264249]
[152204,"EXCAVACION EN CEPAS POR CUALQUIER MEDIO, MATERIAL TIPO \"B\", DE 0 A 2.00 M. DE PROFUNDIDAD, EN SECO, INCLUYE: AFINE DE TALUDES Y FONDO, TRASPALEOS,  MOVIMIENTOS Y ACARREOS DENTRO DE LA OBRA, HERRAMIENTAS Y MANO DE OBRA, MEDIDO EN BANCO.","M3 ","37.3500",0,"CERO PESOS 00/100 M.N.",0,264252]
[156002,"CARGA POR CUALQUIER MEDIO Y ACARREO EN CAMION DE MATERIAL DE DESPERDICIO PRODUCTO DE LAS EXCAVACIONES FUERA DE LA OBRA, A LUGAR PERMITIDO POR LAS AUTORIDADES CORRESPONDIENTES, MEDIDO EN BANCO. INCLUYE CARGA,  ACARREO Y DESCARGA A TIRO LIBRE, HERRAMIENTA, EQUIPO, MATERIALES DE CONSUMO Y MANO DE OBRA.","M3 ","37.3500",0,"CERO PESOS 00/100 M.N.",0,264253]
["33B.03(160)","CIMENTACION                                       ",null,null,null,null,{"$f":"TEXT(SUM(G28:G34), \"$ #,##0.00 ;\")","v":"$ 0.00 "}]
[162002,"CIMIENTO DE PIEDRA BRAZA ACOMODADA PIEDRA POR PIEDRA, ASENTADA CON MORTERO CEMENTO-ARENA  EN PROPORCION 1:3. INCLUYE: MATERIALES, DESPERDICIOS, HERRAMIENTAS, LIMPIEZA, MANO DE OBRA Y ACARREO DE MATERIALES AL SITIO DE SU UTILIZACION.","M3 ","13.3000",0,"CERO PESOS 00/100 M.N.",0,264257]
[162116,"MAMPOSTERIA DE PIEDRA BRAZA, ACABADO APARENTE DOS CARAS DE 0 A 1.50 MTS, ASENTADA CON  CEMENTO-ARENA 1:3, INCLUYE: MATERIALES, HERRAMIENTAS, PLOMEO,  LIMPIEZA, MANO DE OBRA Y ACARREO DE MATERIALES AL SITIO DE SU UTILIZACION.","M3 ","12.0000",0,"CERO PESOS 00/100 M.N.",0,264258]
[162404,"NIVELACION DE MURO DE MAMPOSTERIA CON RAJUELA DE PIEDRA BRAZA JUNTEADA CON MORTERO CEM-ARE 1:3. DE 0.10 M. DE ESPESOR X 0.40 M. DE ANCHO PROMEDIO. INCLUYE: NIVELACION, TRAZO, MANO DE OBRA Y HERRAMIENTA. (NO INCLUYE MATERIALES)","ML ","44.4500",0,"CERO PESOS 00/100 M.N.",0,264259]
[167204,"DALA DE DESPLANTE DE CONCRETO F´C= 150 KG/CM2, T.M.A.= 3/4\", CON SECCION DE 14 X 20 CM., ARMADA CON 4 VARILLAS DEL #3 Y ESTRIBOS DEL #2 @ 20 CM., INCLUYE: ARMADO, COLADO, CURADO, VIBRADO, CIMBRA COMUN, DESCIMBRA, DESPERDICIOS, TRASLAPES, CRUCES DE VARILLAS CON ELEMENTOS TRANSVERSALES, ANDAMIOS, MANO DE OBRA, HERRAMIENTA Y ACARREO DE MATERIALES AL SITIO DE SU UTILIZACION, A CUALQUIER ALTURA.","ML ","22.2000",0,"CERO PESOS 00/100 M.N.",0,264260]
[180054,"RELLENO EN CEPAS POR CUALQUIER MEDIO, CON MATERIAL DE BANCO, (ARENA LIMOSA) COMPACTADO AL 95% PROCTOR, EN CAPAS DE 15 CM, MEDIDO COMPACTO. INCLUYE:  SUMINISTRO DE AGUA PARA LOGRAR HUMEDAD OPTIMA, DESPERDICIOS, TENDIDO, TRASPALEOS,  EQUIPO, PRUEBAS DE COMPACTACION, AFINE, NIVELACION, HERRAMIENTAS, MANO DE OBRA Y  ACARREO HASTA EL SITIO DE SU COLOCACION.  (VOLUMEN MEDIDO COMPACTADO).","M3 ","3.8500",0,"CERO PESOS 00/100 M.N.",0,264266]
[182130,"RELLENO ACOMODADO POR CUALQUIER MEDIO, CON PIEDRAPLEN DE TEZONTLE ROJO CRIBADO DE GRANULOMETRIA CONTROLADA 1\" A 3\" DE DIAMETRO, LIBRE DE FINOS, EN CEPAS Y/O CAJON, EN CAPAS DE 10 CM. DE ESPESOR, INCLUYE:  MATERIALES, BANDEADO, TENDIDO, NIVELADO, DESPERDICIOS, TRASPALEOS, HERRAMIENTAS, MANO DE OBRA Y TODOS LOS ACARREOS NECESARIOS AL SITIO DE SU COLOCACION. (MEDIDO YA COLOCADO)","M3 ","34.7000",0,"CERO PESOS 00/100 M.N.",0,264268]
[192810,"BASE PARA CASTILLO DE 40.0 X 40.0 X 50.0 CM, EN CIMENTACION DE PIEDRA, CON CONCRETO F'C=150 KG/CM2, TMA=3/4\", CON 4 VARILLAS DE 3/8\" DE DIAMETRO Y ESTRIBOS DE 1/4\" @ 15.0 CM. CIMBRA COMUN,  INCLUYE: CIMBRADO Y DESCIMBRADO, COLADO, VIBRADO, CURADO, MATERIALES, DESPERDICIOS, HERRAMIENTAS, LIMPIEZA, MANO DE OBRA Y ACARREO DE MATERIALES AL SITIO DE SU UTILIZACION.","PZA","15.0000",0,"CERO PESOS 00/100 M.N.",0,264271]
["33B.04(310)","MUROS, CADENAS, CASTILLOS Y REPIZONES.            ",null,null,null,null,{"$f":"TEXT(SUM(G36:G38), \"$ #,##0.00 ;\")","v":"$ 0.00 "}]
[310207,"DALA DE CONCRETO F'C=150 KG/CM2, T.M.A.=3/4\", CON SECCION DE 14 X 15 CMS., ARMADA CON 4 VARILLAS DEL # 3 Y ESTRIBOS DEL NO. 2 @ 15 CMS., INCLUYE: ARMADO, COLADO, CURADO, VIBRADO, CIMBRA COMUN, DESCIMBRA, TRASLAPES, CRUCES DE VARILLAS CON ELEMENTOS TRANSVERSALES, DESPERDICIOS, MANO DE OBRA, HERRAMIENTA Y ACARREO DE MATERIALES AL SITIO DE SU UTILIZACION, A CUALQUIER ALTURA.","ML ","22.2000",0,"CERO PESOS 00/100 M.N.",0,264276]
[312244,"CASTILLO DE CONCRETO F'C=150 KG/CM2, T.M.A.=3/4, CON SECCION DE 14 X 20 CMS., ARMADA CON 4 VARILLAS DEL # 3 Y ESTRIBOS DEL NO. 2 @ 20 CMS., INCLUYE:  ARMADO, COLADO, CURADO, VIBRADO, CIMBRA COMUN, DESCIMBRA, TRASLAPES, CRUCES DE VARILLAS CON ELEMENTOS TRANSVERSALES, DESPERDICIOS, MANO DE OBRA, HERRAMIENTA, ANDAMIOS,  Y ACARREO DE MATERIALES AL SITIO DE SU UTILIZACION, A CUALQUIER ALTURA.","ML ","30.4000",0,"CERO PESOS 00/100 M.N.",0,264277]
[314032,"MURO DE TABIQUE DE LAMA, DE 14 CMS. DE ESPESOR PROMEDIO, A SOGA, CON TABIQUE DE LAMA 7 X 14 X 28 CMS., ACABADO COMUN, ASENTADO CON MORTERO CEMENTO-ARENA EN PROPORCION 1:3, EN CUALQUIER NIVEL, INCLUYE: TRAZO, NIVELACION, PLOMEO, ANDAMIOS, DESPERDICIOS, MANO DE OBRA, LIMPIEZA Y ACARREO DE MATERIALES AL SITIO DE SU UTILIZACION.","M2 ","41.1000",0,"CERO PESOS 00/100 M.N.",0,264278]
["33B.05(355)","RECUBRIMIENTOS Y ACABADOS                         ",null,null,null,null,{"$f":"TEXT(SUM(G40:G41), \"$ #,##0.00 ;\")","v":"$ 0.00 "}]
[355022,"APLANADO DE MUROS Y/O TECHOS CON MORTERO CEMENTO-CAL-ARENA DE RIO EN PROP. 1:2:6 DE 2 CM. DE ESPESOR PROMEDIO, A PLOMO Y REGLA, ACABADO APALILLADO FINO, INCLUYE: MATERIALES, DESPERDICIOS, ANDAMIOS, HERRAMIENTAS, PLOMEO, NIVELACION, REMATES, LIMPIEZA DEL AREA DE TRABAJO Y ACARREO DE MATERIALES AL SITIO DE SU UTILIZACION. A CUALQUIER NIVEL.\n","M2 ","104.5000",0,"CERO PESOS 00/100 M.N.",0,264280]
[357322,"BOQUILLAS EN PUERTAS Y VENTANAS, CON MORTERO CEMENTO-CAL-ARENA 1:2:6, INCLUYE: ANDAMIOS Y ACARREO DE MATERIALES AL SITIO DE SU UTILIZACION.","ML ","57.0500",0,"CERO PESOS 00/100 M.N.",0,264281]
["33B.06(372)","PISOS                                             ",null,null,null,null,{"$f":"TEXT(SUM(G43:G44), \"$ #,##0.00 ;\")","v":"$ 0.00 "}]
[373502,"CEJA DE CONCRETO F'C=150 KG/CM2, TMA=3/4\" DE 12.0 X 18.0 CM DE SECCION PROMEDIO, ARMADA CON 1 VARILLA #3 (3/8\") Y ESTRIBOS DE 1/4\" @ 25.0 CM, EN CUALQUIER NIVEL. INCLUYE: CIMBRA APARENTE, DESCIMBRA, COLADO, VIBRADO, CURADO, PERFILADO, CHAFLANES, GOTERO, LIMPIEZA, HERRAMIENTAS, MATERIALES, DESPERDICIOS Y MANO DE OBRA.","ML ","44.5000",0,"CERO PESOS 00/100 M.N.",0,264283]
[382685,"REPISON DE CONCRETO F'C= 150 KG/CM2, CON FORMA TRAPEZOIDAL SECCION DE 50 CM. DE ANCHO X 10 CM. DE ESPESOR EN LOS EXTREMOS Y 15 CM. AL CENTRO DE LA SECCION, ARMADO CON 1 VARILLA DEL # 3 @ 20 CM EN AMBAS DIRECCIONES, CON DETALLES Y MOLDURAS, INCLUYE: CIMBRA APARENTE, DESCIMBRADO, CHAFLANES, COLADO, CURADO, VIBRADO, PERFILADO, DESPERDICIOS, ACABADO PULIDO FINO Y/O CON BROCHA DE PELO, HERRAMIENTA, MANO DE OBRA Y TODO LO NECESARIO PARA SU CORRECTA EJECUCION.","ML ","22.2000",0,"CERO PESOS 00/100 M.N.",0,264284]
["33B.07(393)","PINTURA                                           ",null,null,null,null,{"$f":"TEXT(SUM(G46:G47), \"$ #,##0.00 ;\")","v":"$ 0.00 "}]
[393022,"PINTURA VINIL-ACRÍLICA A BASE DE AGUA ACABADO SEMIMATE  LAVABLE, PARA INTERIORES Y EXTERIORES QUE NO DESPRENDA VAPORES TÓXICOS NI OLORES DESAGRADABLES, CON LAS SIGUIENTES CARACTERÍSTICAS ( SÓLIDOS POR PESO 46-52%, SÓLIDOS POR VOLUMEN 30-36%, VISCOSIDAD DE 100-130 UK A 25°C, DENSIDAD > O = 1.2 TON/M3., LAVABILIDAD > O = 4,000 CICLOS, TIEMPO DE SECADO AL TACTO, 30-40 MIN., TIEMPO DE SECADO DURO < O = 8 HRS., CICLO DE CURADO DE 7 DIAS, PH 6-8, RENDIMIENTO EN SUP. LISA 8-10 M2/LT., FINEZA DE MOLIDO (HEGMAN) 3-7 UH.)  EN MUROS APLANADOS DE MEZCLA APALILLADO O PULIDO, TRABAJO TERMINADO, A DOS MANOS, INCLUYE: MATERIALES MENORES Y DE CONSUMO, ANDAMIOS, PREPARACION DE LA SUPERFICIE, SELLADO DE LA SUPERFICIE, HERRAMIENTAS, LIMPIEZA, MANO DE OBRA Y  ACARREOS DE MATERIALES AL SITIO DE SU UTILIZACIÓN.","M2 ","114.8500",0,"CERO PESOS 00/100 M.N.",0,264285]
[393325,"PINTURA DE ESMALTE ALQUIDALICO ANTICORROSIVO, ACABADO BRILLANTE, PARA INTERIORES Y EXTERIORES QUE NO DESPRENDA VAPORES TÓXICOS NI OLORES DESAGRADABLES, CON LAS SIGUIENTES CARACTERÍSTICAS ( SÓLIDOS POR PESO 49-60%, SÓLIDOS POR VOLUMEN 40-46%, VISCOSIDAD DE 110-160 UK A 25°C, DENSIDAD 0.9-1.2 TON/M3., BRILLO A 60°C, 90%, TIEMPO DE SECADO AL TACTO, < O = 6 HRS., TIEMPO DE SECADO DURO < O = 24 HRS., ADHERENCIA 100%, DILUCIÓN MÁXIMA (AGUARRÁS, THINER), 15 %,  EN BARANDAL METALICO, EN COLOR DE ACUERDO A INDICADO POR SUPERVISIÓN MEDIDO POR UN SOLO LADO, TRABAJO TERMINADO, A DOS MANOS, INCLUYE: MATERIALES MENORES Y DE CONSUMO, PREPARACION DE LA SUPERFICIE, ANDAMIOS, HERRAMIENTAS, LIMPIEZA, MANO DE OBRA Y  EQUIPO DE SEGURIDAD. CUALQUIER ALTURA..","M2 ","51.8000",0,"CERO PESOS 00/100 M.N.",0,264288]
["33B.08(410)","CANCELERIA, HERRERIA, ALUMINIO, VIDRIOS Y CHAPAS  ",null,null,null,null,{"$f":"TEXT(SUM(G49:G50), \"$ #,##0.00 ;\")","v":"$ 0.00 "}]
[192352,"SUMINISTRO Y COLOCACION DE PLACA DE ACERO A-36 DE 4\" X 4\" X 1/4\" PARA FIJACION DE PASAMANOS O BARANDAL A MURO, ESTRUCTURA Y/O CIMENTACION, INCLUYE: MATERIALES, ANCLAS DE ANGULO, CORTES, FIJACION, SOLDADURA, HERRAMIENTAS Y MANO DE OBRA.\n","PZA","44.0000",0,"CERO PESOS 00/100 M.N.",0,264291]
[412006,"SUMINISTRO, FABRICACION Y COLOCACION DE HERRERIA TUBULAR Y/O ESTRUCTURAL PARA BARANDAL O PASAMANOS,  INCLUYE: SOLDADURA, CORTES, AJUSTES, MATERIALES MENORES, DESCALIBRES, DESPERDICIOS, BISAGRAS, FONDO ANTICORROSIVO, FLETES, HERRAMIENTAS, MANO DE OBRA, Y ACARREO DE MATERIALES AL SITIO DE SU UTLIZACION.","KG ","700.2500",0,"CERO PESOS 00/100 M.N.",0,264292]
[82,"CUBIERTA PARA PATIO CIVICO",null,null,null,null,{"$f":"TEXT(SUM(G52 + G54 + G58 + G69 + G74 + G76 + G78 + G82), \"$ #,##0.00 ;\")","v":"$ 0.00 "}]
["82.01(140)","DEMOLICIONES, DESMONTAJES Y MECANICA DE SUELOS    ",null,null,null,null,{"$f":"TEXT(SUM(G53:G53), \"$ #,##0.00 ;\")","v":"$ 0.00 "}]
[140602,"DEMOLICION DE FIRME Y/O PISO DE CONCRETO DE 10 CM DE ESPESOR PROMEDIO, EN SECCIONES OBLIGADAS, INC. CORTE CON DISCO PARA DELIMITAR AREA DE DEMOLICION; MANO DE OBRA, HERRAMIENTA, EQUIPO,  CARGA Y ACARREO INTERIOR Y FUERA DE LA OBRA DEL MATERIAL PRODUCTO DE LA DEMOLICION.","M2 ","13.5000",0,"CERO PESOS 00/100 M.N.",0,264246]
["82.02(150)","TRABAJOS PRELIMINARES                             ",null,null,null,null,{"$f":"TEXT(SUM(G55:G57), \"$ #,##0.00 ;\")","v":"$ 0.00 "}]
[150120,"TRAZO Y NIVELACION DE EXTERIORES ESTABLECIENDO REFERENCIAS DEFINITIVAS, CON TRANSITO Y NIVEL (EQUIPO TOPOGRAFICO), INCLUYE: PERSONAL TECNICO CALIFICADO, ESTACAS, MOJONERAS, LOCALIZACION DE EJES Y/O ENTRE EJES, BANCOS DE NIVEL, MATERIALES PARA SEÑALAMIENTO, EQUIPO, HERRAMIENTA Y MANO DE OBRA.","M2 ","301.4000",0,"CERO PESOS 00/100 M.N.",0,264250]
[152044,"EXCAVACION EN CEPAS POR MEDIOS MANUALES EN MATERIAL TIPO \"B\", DE 0 A 2.00 M. DE PROFUNDIDAD, EN SECO, INCLUYE: AFINE DE TALUDES Y FONDO, TRASPALEOS,  MOVIMIENTOS Y ACARREOS DENTRO DE LA OBRA, HERRAMIENTAS Y MANO DE OBRA, MEDIDO EN BANCO.","M3 ","25.0000",0,"CERO PESOS 00/100 M.N.",0,264251]
[156002,"CARGA POR CUALQUIER MEDIO Y ACARREO EN CAMION DE MATERIAL DE DESPERDICIO PRODUCTO DE LAS EXCAVACIONES FUERA DE LA OBRA, A LUGAR PERMITIDO POR LAS AUTORIDADES CORRESPONDIENTES, MEDIDO EN BANCO. INCLUYE CARGA,  ACARREO Y DESCARGA A TIRO LIBRE, HERRAMIENTA, EQUIPO, MATERIALES DE CONSUMO Y MANO DE OBRA.","M3 ","25.0000",0,"CERO PESOS 00/100 M.N.",0,264254]
["82.03(160)","CIMENTACION                                       ",null,null,null,null,{"$f":"TEXT(SUM(G59:G68), \"$ #,##0.00 ;\")","v":"$ 0.00 "}]
[160092,"PLANTILLA DE RELLENO DE EMBECO NO. 636, DE 5.0 CM DE ESPESOR PROMEDIO, PARA RECIBIR PLACA BASE DE COLUMNAS DE ESTRUCTURA METALICAS, INCLUYE: PREPARACION, CIMBRA, DECIMBRADO, MATERIALES, DESPERDICIOS, HERRAMIENTAS, LIMPIEZAS Y MANO DE OBRA.","M2 ","1.2000",0,"CERO PESOS 00/100 M.N.",0,264255]
[160222,"PLANTILLA DE CONCRETO F'C=100 KG/CM2, TMA=3/4\", DE 5.00 CM DE ESPESOR PROMEDIO. INCLUYE: MATERIALES, HERRAMIENTAS, AFINE, NIVELACION, LIMPIEZA, MANO DE OBRA Y ACARREO DE MATERIALES AL SITIO DE SU UTILIZACION.","M2 ","13.5000",0,"CERO PESOS 00/100 M.N.",0,264256]
[170012,"CIMBRA  ACABADO COMUN, EN CIMENTACION, INCLUYE: DESPERDICIO, HABILITADO, CIMBRADO Y DESCIMBRA, NIVELACION, PLOMEO MATERIAL, MANO DE OBRA , LIMPIEZA, HERRAMIENTA, ACARREO DEL MATRIAL DENTRO Y FUERA DE LA OBRA.","M2 ","17.4000",0,"CERO PESOS 00/100 M.N.",0,264261]
[173003,"SUMINISTRO, HABILITADO, ARMADO Y COLOCACION DE ACERO DE REFUERZO FY=4,200 KG/CM2 (G.E.), DE 3/8\" ( #3 ), EN CIMENTACION, INCLUYE: MATERIALES, HABILITADO,  DOBLECES,  SILLETAS, ALAMBRE, GANCHOS, ESCUADRAS, TRASLAPES, DESPERDICIOS HERRAMIENTAS, MANO DE OBRA Y ACARREO DE MATERIALES AL SITIO DE SU COLOCACION.","KG ","147.0000",0,"CERO PESOS 00/100 M.N.",0,264262]
[173004,"SUMINISTRO, HABILITADO, ARMADO Y COLOCACION DE ACERO DE REFUERZO FY=4,200 KG/CM2 (G.E.), DE 1/2\" ( #4 ), EN CIMENTACION, INCLUYE: MATERIALES, HABILITADO,  DOBLECES,  SILLETAS, ALAMBRE, GANCHOS, ESCUADRAS, TRASLAPES, DESPERDICIOS HERRAMIENTAS, MANO DE OBRA Y ACARREO DE MATERIALES AL SITIO DE SU COLOCACION.","KG ","69.0000",0,"CERO PESOS 00/100 M.N.",0,264263]
[173008,"SUMINISTRO, HABILITADO, ARMADO Y COLOCACION DE ACERO DE REFUERZO FY=4,200 KG/CM2 (G.E.), DE 1\" (#8 ), EN CIMENTACION, INCLUYE: MATERIALES, HABILITADO,  DOBLECES,  SILLETAS, ALAMBRE, GANCHOS, ESCUADERAS, TRASLAPES, DESPERDICIOS HERRAMIENTAS, MANO DE OBRA Y ACARREO DE MATERIALES AL SITIO DE SU COLOCACION.","KG ","309.0000",0,"CERO PESOS 00/100 M.N.",0,264264]
[176008,"SUMINISTRO Y COLOCACION DE CONCRETO HECHO EN OBRA F'C=250 KG/CM2, TMA= 3/4\", R.N. EN CIMENTACION. INCLUYE: TENDIDO, RASTREADO, VIBRADO, NIVELACION, HERRAMIENTAS, LIMPIEZA, PRUEBAS,  CURADO CON CURACRETO ROJO,  DESPERDICIO Y MANO DE OBRA.","M3 ","3.6000",0,"CERO PESOS 00/100 M.N.",0,264265]
[180054,"RELLENO EN CEPAS POR CUALQUIER MEDIO, CON MATERIAL DE BANCO, (ARENA LIMOSA) COMPACTADO AL 95% PROCTOR, EN CAPAS DE 15 CM, MEDIDO COMPACTO. INCLUYE:  SUMINISTRO DE AGUA PARA LOGRAR HUMEDAD OPTIMA, DESPERDICIOS, TENDIDO, TRASPALEOS,  EQUIPO, PRUEBAS DE COMPACTACION, AFINE, NIVELACION, HERRAMIENTAS, MANO DE OBRA Y  ACARREO HASTA EL SITIO DE SU COLOCACION.  (VOLUMEN MEDIDO COMPACTADO).","M3 ","10.6000",0,"CERO PESOS 00/100 M.N.",0,264267]
[182130,"RELLENO ACOMODADO POR CUALQUIER MEDIO, CON PIEDRAPLEN DE TEZONTLE ROJO CRIBADO DE GRANULOMETRIA CONTROLADA 1\" A 3\" DE DIAMETRO, LIBRE DE FINOS, EN CEPAS Y/O CAJON, EN CAPAS DE 10 CM. DE ESPESOR, INCLUYE:  MATERIALES, BANDEADO, TENDIDO, NIVELADO, DESPERDICIOS, TRASPALEOS, HERRAMIENTAS, MANO DE OBRA Y TODOS LOS ACARREOS NECESARIOS AL SITIO DE SU COLOCACION. (MEDIDO YA COLOCADO)","M3 ","10.3000",0,"CERO PESOS 00/100 M.N.",0,264269]
[192324,"FABRICACION, SUMINISTRO Y COLOCACION DE JUEGO DE ANCLAS EN \"L\" DE REDONDO LISO (COLD ROLLED) CON 4 VARILLAS DE 1\" (#8), DE 70 CM DE DESARROLLO TOTAL (CADA ANCLA), CON 10 CM. DE ROSCA EN EXTREMO SUPERIOR, UNIDAS CON 2 ANILLETAS DE DE VARILLA CORRUGADA DE 3/8\" Y ALINEADAS A LA PLACA EN LA BASE DE COLUMNA. INCLUYE: CORTES, ROSCADO, DESPERDICIOS, ALINEACION, NIVELACION, PLOMEO, SOLDADURA, DOBLECES, TUERCAS, RONDANAS,  MANO DE OBRA, EQUIPO, HERRAMIENTA Y ACARREOS.","JGO","6.0000",0,"CERO PESOS 00/100 M.N.",0,264270]
["82.04(200)","ESTRUCTURA                                        ",null,null,null,null,{"$f":"TEXT(SUM(G70:G73), \"$ #,##0.00 ;\")","v":"$ 0.00 "}]
[280090,"SUMINISTRO, HABILITADO Y MONTAJE DE ESTRUCTURA METALICA DE ACERO ASTMA-36 F'Y=2530 KG/CM2, SOLDADOS Y/O ATORNILLADOS, (PERFILES IPR. IPS, CPS, REDONDOS SOLIDO, SOLERAS Y PLACAS, ETC, DIFERENTES DIMENSIONES Y CALIBRES,) PARA COLUMNAS, ARMADURAS, TRABES Y VIGAS, INCLUYE: MATERIALES MENORES Y DE CONSUMO, TRAZO, CORTES, AJUSTES, DESPERDICIOS, ENDEREZADO, BISELADO, DESCALIBRES, BARRENOS, TORQUES, SOLDADURA, UNA PRUEBA RADIOGRAFICA Y/O LIQUIDOS PENETRANTES POR CADA 500 KG. DE ACERO, FLETES, PINTURA ANTICORROSIVA, MANO DE OBRA CALIFICADA, HERRAMIENTA, EQUIPO, FLETES, ELEVACIONES, ACARREOS DE MATERIALES AL SITIO DE SU COLOCACION, ACUALQUIER ALTURA.","KG ","306.0000",0,"CERO PESOS 00/100 M.N.",0,264272]
[280095,"SUMINISTRO, HABILITADO Y MONTAJE DE ESTRUCTURA METALICA DE ACERO, ASTM A-500 GR-B, F'Y=3200 KG/CM2, SOLDADOS Y/O ATORNILLADOS, (OR, OC, TUBOS REDONDOS, PTR, ETC, DIFERENTES DIMENSIONES Y CALIBRES,) PARA COLUMNAS, ARMADURAS, TRABES Y VIGAS, INCLUYE: MATERIALES MENORES Y DE CONSUMO, TRAZO, CORTES, AJUSTES, DESPERDICIOS, ENDEREZADO, BISELADO, DESCALIBRES, BARRENOS, TORQUES, SOLDADURA, UNA PRUEBA RADIOGRAFICA Y/O LIQUIDOS PENETRANTES POR CADA 500 KG. DE ACERO, FLETES, PINTURA ANTICORROSIVA, MANO DE OBRA CALIFICADA, HERRAMIENTA, ANDAMIOS, EQUIPO, FLETES, ELEVACIONES, ACARREOS DE MATERIALES AL SITIO DE SU COLOCACION, A CUALQUIER ALTURA.","KG ","1,890.0000",0,"CERO PESOS 00/100 M.N.",0,264273]
[280096,"SUMINISTRO, HABILITADO, ROLADO Y MONTAJE DE ESTRUCTURA METALICA DE ACERO, ASTM A-500 GR-B, F'Y=3200 KG/CM2, SOLDADOS Y/O ATORNILLADOS, (OR, OC, TUBOS REDONDOS, PTR, ETC, DIFERENTES DIMENSIONES Y CALIBRES,) PARA COLUMNAS, ARMADURAS, TRABES Y VIGAS, INCLUYE: MATERIALES MENORES Y DE CONSUMO, TRAZO, CORTES, AJUSTES, DESPERDICIOS, ENDEREZADO, ROLADO, BISELADO, DESCALIBRES, BARRENOS, TORQUES, SOLDADURA, UNA PRUEBA RADIOGRAFICA Y/O LIQUIDOS PENETRANTES POR CADA 500 KG. DE ACERO, FLETES, PINTURA ANTICORROSIVA, MANO DE OBRA CALIFICADA, HERRAMIENTA, ANDAMIOS, EQUIPO, FLETES, ELEVACIONES, ACARREOS DE MATERIALES AL SITIO DE SU COLOCACION, A CUALQUIER ALTURA.","KG ","2,155.0000",0,"CERO PESOS 00/100 M.N.",0,264274]
[280202,"SUMINISTRO, HABILITADO  Y COLOCACION TENSORES, CRUCETAS Y/O TIRANTES DE REDONDO LISO (COLD ROLLED) DE ACERO DE BAJO CARBÓN ASTM A-108 DE ½\" A 1\" DE DIAMETRO, INCLUYE: TRAZO, CORTES, AJUSTES, BARRENOS, DESPERDICOS, DESCALIBRES, SOLDADURA DE PENETRACION, PRUEBAS RADIOGRAFICAS Y/O LIQUIDOS PENETRANTES, ROSCADO, TUERCAS, RONDANAS, TENSADO, TORQUES, FLETES, HERRAMIENTAS, ANDAMIOS, EQUIPO, PINTURA ANTICORROSIVA, MANO DE OBRA Y ACARREOS AL SITIO DE SU COLOCACION. A CUALQUIER ALTURA.","KG ","246.0000",0,"CERO PESOS 00/100 M.N.",0,264275]
["82.05(319)","ENTREPISOS, CUBIERTA Y ACABADOS DE AZOTEA         ",null,null,null,null,{"$f":"TEXT(SUM(G75:G75), \"$ #,##0.00 ;\")","v":"$ 0.00 "}]
[906752,"SUMINISTRO E INSTALACION DE MEMBRANA ARQUITECTONICA BLACK OUT PVC/PVDF, PESO 850 G/M2, TIPO I RESISTENCIA A LA RUPTURA: 3000 N/5CM, RESISTENCIA AL RASGADO 300 N, ADHESIÓN DE 100 A 120 N/5CM, AUTO-EXTINGUIBLE O TRATAMIENTO AL FUEGO, TRANSMITANCIA UV<0.1%, TRATAMIENTO ANTI-HONGOS Y DURABILIDAD DE 15 AÑOS COMO MÍNIMO, UNIDAD CON TERMO SELLADO, INCLUYE: TRAZO, CORTES, CONFECCIÓN, HERRAJES, TENSORES, MATERIALES MENORES Y DE CONSUMO, DESPERDICIOS, ELEVACIÓN, HERRAMIENTAS, EQUIPO,  ELEMENTOS DE FIJACION, SELLADO, LIMPIEZA, MANO DE OBRA ESPECIALIZADA, FLETES Y ACARREOS.","M2 ","281.9500",0,"CERO PESOS 00/100 M.N.",0,264279]
["82.06(372)","PISOS                                             ",null,null,null,null,{"$f":"TEXT(SUM(G77:G77), \"$ #,##0.00 ;\")","v":"$ 0.00 "}]
[373022,"PISO DE CONCRETO F'C=150 KG/CM², T.M.A. 3/4\", DE 0.10 M. DE ESPESOR, COLADO EN CUADROS NO MAYORES DE 3.00 ML POR LADO, INCLUYE: TRAZO, NIVELACION, AFINE Y COMPACTACION DEL TERRENO, AGUA, DESPERDICIOS, ACARREOS, REGLEADO, ACABADO INTEGRAL RAYADO CON BROCHA DE PELO (SIN UTILIZACION DE PASTA), CIMBRA EN FRONTERAS, DESCIMBRA, COLADO, CURADO, REMATES, ESCALONADO, MUESTREADO, JUNTAS FRIAS CON VOLTEADOR, HERRAMIENTAS Y MANO DE OBRA.","M2 ","13.5000",0,"CERO PESOS 00/100 M.N.",0,264282]
["82.07(393)","PINTURA                                           ",null,null,null,null,{"$f":"TEXT(SUM(G79:G81), \"$ #,##0.00 ;\")","v":"$ 0.00 "}]
[393318,"PINTURA DE ESMALTE ALQUIDALICO ANTICORROSIVO, ACABADO BRILLANTE, PARA INTERIORES Y EXTERIORES QUE NO DESPRENDA VAPORES TÓXICOS NI OLORES DESAGRADABLES, CON LAS SIGUIENTES CARACTERÍSTICAS ( SÓLIDOS POR PESO 49-60%, SÓLIDOS POR VOLUMEN 40-46%, VISCOSIDAD DE 110-160 UK A 25°C, DENSIDAD 0.9-1.2 TON/M3., BRILLO A 60°C, 90%, TIEMPO DE SECADO AL TACTO, < O = 6 HRS., TIEMPO DE SECADO DURO < O = 24 HRS., ADHERENCIA 100%, RENDIMIENTO EN SUP. LISA 8-10 M2/LT., DILUCIÓN MÁXIMA (AGUARRÁS, THINER), 15 %,  DE TUBO DE FIERRO NEGRO DE 4\" A 6\" DE DIÁMETRO, (POSTES, PASAMANOS, BARANDALES, ESTRUCTURAS, REDES, ETC.), TRABAJO TERMINADO, A DOS MANOS, INCLUYE: MATERIALES MENORES Y DE CONSUMO, PREPARACION DE LA SUPERFICIE, ANDAMIOS, HERRAMIENTAS, LIMPIEZA, MANO DE OBRA Y  EQUIPO DE SEGURIDAD. CUALQUIER ALTURA.","ML ","169.9000",0,"CERO PESOS 00/100 M.N.",0,264286]
[393319,"PINTURA DE ESMALTE ALQUIDALICO ANTICORROSIVO, ACABADO BRILLANTE, PARA INTERIORES Y EXTERIORES QUE NO DESPRENDA VAPORES TÓXICOS NI OLORES DESAGRADABLES, CON LAS SIGUIENTES CARACTERÍSTICAS ( SÓLIDOS POR PESO 49-60%, SÓLIDOS POR VOLUMEN 40-46%, VISCOSIDAD DE 110-160 UK A 25°C, DENSIDAD 0.9-1.2 TON/M3., BRILLO A 60°C, 90%, TIEMPO DE SECADO AL TACTO, < O = 6 HRS., TIEMPO DE SECADO DURO < O = 24 HRS., ADHERENCIA 100%, RENDIMIENTO EN SUP. LISA 8-10 M2/LT., DILUCIÓN MÁXIMA (AGUARRÁS, THINER), 15 %,   EN TUBO DE FIERRO NEGRO DE 3/4\" A 1 1/2\" DE DIÁMETRO, (POSTES, PASAMANOS, BARANDALES, REDES, ETC.),  TRABAJO TERMINADO, A DOS MANOS, INCLUYE: MATERIALES MENORES Y DE CONSUMO, PREPARACION DE LA SUPERFICIE, ANDAMIOS, HERRAMIENTAS, LIMPIEZA, MANO DE OBRA Y  EQUIPO DE SEGURIDAD. CUALQUIER ALTURA.","ML ","61.2000",0,"CERO PESOS 00/100 M.N.",0,264287]
[917337,"PINTURA DE ESMALTE ALQUIDALICO ANTICORROSIVO, ACABADO BRILLANTE, PARA INTERIORES Y EXTERIORES QUE NO DESPRENDA VAPORES TÓXICOS NI OLORES DESAGRADABLES, CON LAS SIGUIENTES CARACTERÍSTICAS ( SÓLIDOS POR PESO 49-60%, SÓLIDOS POR VOLUMEN 40-46%, VISCOSIDAD DE 110-160 UK A 25°C, DENSIDAD 0.9-1.2 TON/M3., BRILLO A 60°C, 90%, TIEMPO DE SECADO AL TACTO, < O = 6 HRS., TIEMPO DE SECADO DURO < O = 24 HRS., ADHERENCIA 100%, RENDIMIENTO EN SUP. LISA 8-10 M2/LT., DILUCIÓN MÁXIMA (AGUARRÁS, THINER), 15 %,  DE TUBO DE FIERRO NEGRO DE 8\" A 10\" DE DIÁMETRO, (POSTES, PASAMANOS, BARANDALES, ESTRUCTURAS, REDES, ETC.), TRABAJO TERMINADO, A DOS MANOS, INCLUYE: MATERIALES MENORES Y DE CONSUMO, PREPARACION DE LA SUPERFICIE, ANDAMIOS, HERRAMIENTAS, LIMPIEZA, MANO DE OBRA Y  EQUIPO DE SEGURIDAD. CUALQUIER ALTURA.","ML ","30.6000",0,"CERO PESOS 00/100 M.N.",0,264289]
["82.08(396)","LIMPIEZA                                          ",null,null,null,null,{"$f":"TEXT(SUM(G83:G83), \"$ #,##0.00 ;\")","v":"$ 0.00 "}]
[396428,"LIMPIEZA GENERAL DE LA OBRA, INCLUYE: ACARREO DEL MATERIAL PRODUCTO DE LA LIMPIEZA , FUERA DE LA OBRA.","M2 ","301.4000",0,"CERO PESOS 00/100 M.N.",0,264290]
[null,"RESUMEN DE PARTIDAS"]
["BAS-CON-04005","CONSTRUCCIÓN DE CUBIERTA PARA EL PATIO CÍVICO EN LA ESCUELA PRIMARIA NIÑO ARTILLERO CCT 14DPR2890O, UBICADA EN LA LOCALIDAD LA AURORA, MUNICIPIO DE JUANACATLÁN, JALISCO.",null,null,null,null,{"$f":"G17","v":"$ 0.00 "}]
["33B","MURO REJA",null,null,null,null,{"$f":"G18","v":"$ 0.00 "}]
["33B.01(140)","DEMOLICIONES, DESMONTAJES Y MECANICA DE SUELOS    ",null,null,null,null,{"$f":"G19","v":"$ 0.00 "}]
["33B.02(150)","TRABAJOS PRELIMINARES                             ",null,null,null,null,{"$f":"G22","v":"$ 0.00 "}]
["33B.03(160)","CIMENTACION                                       ",null,null,null,null,{"$f":"G27","v":"$ 0.00 "}]
["33B.04(310)","MUROS, CADENAS, CASTILLOS Y REPIZONES.            ",null,null,null,null,{"$f":"G35","v":"$ 0.00 "}]
["33B.05(355)","RECUBRIMIENTOS Y ACABADOS                         ",null,null,null,null,{"$f":"G39","v":"$ 0.00 "}]
["33B.06(372)","PISOS                                             ",null,null,null,null,{"$f":"G42","v":"$ 0.00 "}]
["33B.07(393)","PINTURA                                           ",null,null,null,null,{"$f":"G45","v":"$ 0.00 "}]
["33B.08(410)","CANCELERIA, HERRERIA, ALUMINIO, VIDRIOS Y CHAPAS  ",null,null,null,null,{"$f":"G48","v":"$ 0.00 "}]
[82,"CUBIERTA PARA PATIO CIVICO",null,null,null,null,{"$f":"G51","v":"$ 0.00 "}]
["82.01(140)","DEMOLICIONES, DESMONTAJES Y MECANICA DE SUELOS    ",null,null,null,null,{"$f":"G52","v":"$ 0.00 "}]
["82.02(150)","TRABAJOS PRELIMINARES                             ",null,null,null,null,{"$f":"G54","v":"$ 0.00 "}]
["82.03(160)","CIMENTACION                                       ",null,null,null,null,{"$f":"G58","v":"$ 0.00 "}]
["82.04(200)","ESTRUCTURA                                        ",null,null,null,null,{"$f":"G69","v":"$ 0.00 "}]
["82.05(319)","ENTREPISOS, CUBIERTA Y ACABADOS DE AZOTEA         ",null,null,null,null,{"$f":"G74","v":"$ 0.00 "}]
["82.06(372)","PISOS                                             ",null,null,null,null,{"$f":"G76","v":"$ 0.00 "}]
["82.07(393)","PINTURA                                           ",null,null,null,null,{"$f":"G78","v":"$ 0.00 "}]
["82.08(396)","LIMPIEZA                                          ",null,null,null,null,{"$f":"G82","v":"$ 0.00 "}]
[]
["IMPORTE CON LETRA (IVA INCLUIDO)",null,null,null,null,"SUBTOTAL M.N.",{"$f":"TEXT(G17,  \"$ #,##0.00 ;\")","v":"$ 0.00 "}]
[{"$f":"UPPER(CONVERTIRNUM(ROUND( G17 * 1.16, 2)))","v":"CERO PESOS 00/100 M.N."},null,null,null,null,"IVA M.N.",{"$f":"TEXT(ROUND( G17 * 0.16, 2),  \"$ #,##0.00 ;\")","v":"$ 0.00 "}]
[null,null,null,null,null,"TOTAL M.N.",{"$f":"TEXT(ROUND( G17 * 1.16, 2),  \"$ #,##0.00 ;\")","v":"$ 0.00 "}]